bitfinex/quotes_BTCUSD_20250825
["timestamp","ask_amount","ask_price","bid_price","bid_amount"]
[1756082707103,0.01920413,112550.0,112530.0,0.60536641]
[1756082707314,0.20012397,112550.0,112530.0,0.1759044]
[1756082707539,0.17771459,112540.0,112530.0,0.26504475]
[1756082707758,0.17976459,112540.0,112530.0,0.08688475]
[1756082707977,0.17976459,112540.0,112510.0,0.07110163]
[1756082707978,0.17773038,112530.0,112510.0,0.07110163]
[1756082708201,0.17774617,112520.0,112510.0,0.33606638]
[1756082708444,0.17774617,112520.0,112510.0,0.13254503]
[1756082708664,0.17774617,112520.0,112510.0,0.08688475]
[1756082708902,0.18301617,112520.0,112510.0,0.08688475]
[1756082709131,0.18301617,112520.0,112500.0,0.05217642]
[1756082709132,0.17776197,112510.0,112500.0,0.05217642]
[1756082709390,0.17776197,112510.0,112490.0,0.07110163]
[1756082709391,0.17777777,112500.0,112490.0,0.17792]
[1756082709622,0.17779365,112490.0,112480.0,0.08688475]
[1756082709857,0.18306365,112490.0,112480.0,0.08688475]
[1756082710305,0.17780938,112480.0,112470.0,0.17788]
[1756082710542,0.17779365,112490.0,112470.0,0.28470275]
[1756082710766,0.17780938,112480.0,112470.0,0.28263726]
[1756082711004,0.20774465,112490.0,112470.0,0.28478726]
[1756082711455,0.20874465,112490.0,112480.0,0.002]
[1756082711674,0.17780938,112480.0,112470.0,0.28263726]
[1756082711898,0.18307938,112480.0,112470.0,0.01787251]
[1756082712146,0.18307938,112480.0,112470.0,8.451e-05]
[1756082712375,1.39081265,112480.0,112470.0,8.451e-05]
[1756082713027,0.00205,112480.0,112470.0,8.451e-05]
[1756082713279,0.20452692,112490.0,112470.0,0.09334207]
[1756082713529,0.20452692,112490.0,112470.0,0.09311926]
[1756082713757,0.20452692,112490.0,112470.0,0.14049304]
[1756082713981,0.17779592,112490.0,112470.0,0.14049304]
[1756082714205,0.17779592,112490.0,112470.0,0.13849304]
[1756082714664,0.17779592,112490.0,112470.0,0.13649304]
[1756082714893,0.17779592,112490.0,112470.0,0.13427023]
[1756082714894,0.17780938,112480.0,112470.0,0.13427023]
[1756082715120,0.38234934,112500.0,112470.0,0.38810467]
[1756082715350,0.20450934,112500.0,112480.0,0.08910736]
[1756082715579,0.026731,112500.0,112480.0,0.3235093]
[1756082715827,0.17777777,112500.0,112490.0,0.17792]
[1756082716061,0.17779358,112490.0,112480.0,0.32131765]
[1756082716292,0.17780938,112480.0,112470.0,0.17792451]
[1756082716515,0.17780938,112480.0,112470.0,0.26480926]
[1756082716986,0.17779358,112490.0,112470.0,0.26695926]
[1756082717227,0.17780938,112480.0,112470.0,0.26680926]
[1756082717462,1.38874685,112490.0,112480.0,0.002]
[1756082717687,1.38552685,112490.0,112480.0,0.002]
[1756082717905,0.18306358,112490.0,112480.0,0.002]
[1756082718125,1.39079685,112490.0,112480.0,0.002]
[1756082718620,0.17780938,112480.0,112470.0,8.451e-05]
[1756082718854,1.39081265,112480.0,112470.0,0.00108451]
[1756082719313,1.41754565,112480.0,112470.0,8.451e-05]
[1756082719548,1.59502565,112480.0,112470.0,8.451e-05]
[1756082719785,1.59502565,112480.0,112470.0,0.00208451]
[1756082720525,0.026733,112480.0,112470.0,0.00208451]
[1756082720774,0.17780938,112480.0,112470.0,0.00430732]
[1756082721039,1.39081265,112480.0,112470.0,0.02192451]
[1756082721252,1.39081265,112480.0,112470.0,0.00408451]
[1756082721470,0.026734,112490.0,112470.0,0.00623451]
[1756082721695,1.56601175,112500.0,112470.0,0.34669789]
[1756082721915,1.38874745,112490.0,112470.0,0.21756387]
[1756082722154,0.18101418,112490.0,112470.0,0.21756387]
[1756082722392,0.18101418,112490.0,112470.0,0.39284387]
[1756082722623,1.38874745,112490.0,112470.0,0.39169387]
[1756082722858,1.39081265,112480.0,112470.0,0.05642749]
[1756082723087,0.18307938,112480.0,112470.0,0.00308451]
[1756082723312,1.39081265,112480.0,112470.0,0.00108451]
[1756082723759,1.42616059,112480.0,112470.0,8.451e-05]
[1756082724408,1.42616059,112480.0,112470.0,0.00408451]
[1756082725873,0.21842732,112480.0,112470.0,0.00408451]
[1756082726177,1.42616059,112480.0,112470.0,0.00408451]
[1756082727322,0.23234195,112480.0,112470.0,0.00408451]
[1756082727561,1.44007522,112480.0,112470.0,0.00408451]
[1756082728520,0.23234195,112480.0,112470.0,0.00408451]
[1756082728777,0.04926257,112480.0,112470.0,0.00830732]
[1756082729020,0.20311722,112480.0,112470.0,0.00608451]
[1756082729256,0.02252957,112480.0,112470.0,0.00608451]
[1756082729487,0.20522895,112480.0,112470.0,0.00408451]
[1756082729716,1.43296222,112480.0,112470.0,0.00408451]
[1756082730416,0.22522895,112480.0,112470.0,0.00408451]
[1756082730651,1.43296222,112480.0,112470.0,0.00408451]
[1756082730875,1.41904759,112480.0,112470.0,0.00408451]
[1756082731603,6.37163134,112480.0,112470.0,0.00408451]
[1756082732068,5.16389807,112480.0,112470.0,0.00408451]
[1756082732289,6.46058659,112480.0,112470.0,0.00408451]
[1756082732527,6.46058659,112480.0,112470.0,0.00208451]
[1756082733271,5.25285332,112480.0,112470.0,8.451e-05]
[1756082733530,6.50341742,112480.0,112470.0,0.00108451]
[1756082733768,0.21137432,112480.0,112470.0,0.00108451]
[1756082733994,0.21137432,112480.0,112470.0,0.00308451]
[1756082733995,0.20942432,112480.0,112470.0,0.00308451]
[1756082734238,0.03161494,112480.0,112470.0,0.00308451]
[1756082734467,0.02,112480.0,112470.0,0.07318614]
[1756082734701,0.02,112480.0,112470.0,0.27833685]
[1756082734929,0.022,112480.0,112470.0,0.36542879]
[1756082735178,0.022,112480.0,112470.0,0.54190879]
[1756082735431,0.022,112480.0,112470.0,0.61030879]
[1756082735888,0.022,112480.0,112470.0,0.43382879]
[1756082736130,0.02,112480.0,112470.0,0.61210879]
[1756082736366,0.02,112480.0,112470.0,0.60967879]
[1756082737061,0.02,112480.0,112470.0,0.61367879]
[1756082737296,0.021,112480.0,112470.0,0.54657716]
[1756082738043,1.41143265,112480.0,112470.0,0.25452451]
[1756082738280,1.41143265,112480.0,112470.0,0.01008451]
[1756082738510,1.41143265,112480.0,112470.0,0.00608451]
[1756082738992,0.20269938,112480.0,112470.0,8.451e-05]
[1756082739233,0.02489,112480.0,112470.0,0.00308451]
[1756082739464,0.02,112480.0,112470.0,0.00308451]
[1756082739708,0.02,112480.0,112470.0,0.00208451]
[1756082740414,0.02,112480.0,112470.0,0.00508451]
[1756082740415,0.021,112480.0,112470.0,0.00508451]
[1756082740639,0.02,112480.0,112470.0,0.00430732]
[1756082740862,0.02277827,112480.0,112470.0,0.00408451]
[1756082741764,0.02277827,112480.0,112470.0,0.00208451]
[1756082741976,0.02277827,112480.0,112470.0,0.00408451]
[1756082742193,0.20547765,112480.0,112470.0,0.00408451]
[1756082742459,0.20269938,112480.0,112470.0,0.00408451]
[1756082743207,0.02195,112480.0,112470.0,0.00408451]
[1756082743428,0.02472827,112480.0,112470.0,0.00408451]
[1756082743660,0.02766827,112480.0,112470.0,0.00408451]
[1756082743953,0.02,112480.0,112470.0,0.1839097]
[1756082744166,0.02,112480.0,112470.0,0.33208366]
[1756082744807,0.02,112480.0,112470.0,0.33451366]
[1756082745043,0.02,112480.0,112470.0,0.33337847]
[1756082745255,0.02,112480.0,112470.0,0.33321847]
[1756082745480,0.02489,112480.0,112470.0,0.33121847]
[1756082745701,0.02489,112480.0,112470.0,0.43121847]
[1756082746151,0.02489,112480.0,112470.0,0.43171847]
[1756082746789,1.41043265,112480.0,112470.0,0.16587372]
[1756082747023,1.41043265,112480.0,112470.0,0.10458451]
[1756082747480,0.02195,112480.0,112470.0,0.10458451]
[1756082747698,0.02195,112480.0,112470.0,0.10680732]
[1756082747931,0.02195,112480.0,112470.0,0.10458451]
[1756082748164,0.02195,112480.0,112470.0,0.10258451]
[1756082748390,0.02,112480.0,112470.0,0.15069387]
[1756082748615,0.20269938,112480.0,112470.0,0.32579106]
[1756082748836,1.41043265,112480.0,112470.0,0.10158451]
[1756082754812,1.58831265,112480.0,112470.0,0.10158451]
[1756082756793,0.38057938,112480.0,112470.0,0.10158451]
[1756082757032,1.58831265,112480.0,112470.0,0.10158451]
[1756082757284,0.38057938,112480.0,112470.0,0.10158451]
[1756082757494,1.58831265,112480.0,112470.0,0.10158451]
[1756082758641,1.34633156,112480.0,112470.0,0.10158451]
[1756082758858,0.31853767,112480.0,112470.0,0.10158451]
[1756082759076,0.17993938,112480.0,112470.0,0.10158451]
[1756082759305,0.17993938,112480.0,112470.0,0.11383296]
[1756082759306,1.56447265,112480.0,112470.0,0.11383296]
[1756082759517,0.35673938,112480.0,112470.0,0.11383296]
[1756082759729,1.56447265,112480.0,112470.0,0.11383296]
[1756082760176,1.57838748,112480.0,112470.0,0.11174296]
[1756082760675,1.56447265,112480.0,112470.0,0.11174296]
[1756082761153,1.56764265,112480.0,112470.0,0.11174296]
[1756082761845,1.56764265,112480.0,112470.0,0.10158451]
[1756082763454,0.38347638,112480.0,112470.0,0.00158451]
[1756082763676,1.59120965,112480.0,112470.0,0.00158451]
[1756082763902,1.41440965,112480.0,112470.0,0.00158451]
[1756082764126,0.38287638,112480.0,112470.0,0.00158451]
[1756082764346,1.59377965,112480.0,112470.0,0.00158451]
[1756082764562,1.59577965,112480.0,112470.0,0.00158451]
[1756082764995,1.59577965,112480.0,112470.0,0.00058451]
[1756082766528,1.59597965,112480.0,112470.0,0.00058451]
[1756082767657,1.6828644,112480.0,112470.0,0.00058451]
[1756082769928,6.91560739,112480.0,112470.0,0.00058451]
[1756082772140,6.91560739,112480.0,112430.0,0.07418163]
[1756082772141,0.17787264,112440.0,112430.0,0.07224614]
[1756082772385,1.38560591,112440.0,112430.0,0.17447708]
[1756082772808,1.56164591,112440.0,112430.0,0.17447708]
[1756082773486,1.38560591,112440.0,112430.0,0.19192479]
[1756082773715,1.39419146,112440.0,112430.0,0.19192479]
[1756082774562,1.39519146,112440.0,112430.0,0.19492479]
[1756082775198,1.39519146,112440.0,112430.0,0.19384479]
[1756082775199,0.18958819,112440.0,112430.0,0.19384479]
[1756082775440,1.39732146,112440.0,112430.0,0.19175479]
[1756082775663,1.57336146,112440.0,112430.0,0.10514094]
[1756082776170,6.48129751,112440.0,112430.0,0.10514094]
[1756082776621,6.39214226,112440.0,112430.0,0.10514094]
[1756082776841,6.56818226,112440.0,112430.0,0.10514094]
[1756082777074,6.39214226,112440.0,112430.0,0.10514094]
[1756082777291,6.56818226,112440.0,112430.0,0.10514094]
[1756082777735,6.39214226,112440.0,112430.0,0.10514094]
[1756082777945,6.56818226,112440.0,112430.0,0.10514094]
[1756082778705,6.39214226,112440.0,112430.0,0.10514094]
[1756082778919,6.56582226,112440.0,112430.0,0.10723094]
[1756082779140,6.56818226,112440.0,112430.0,0.10485143]
[1756082779348,6.56818226,112440.0,112430.0,0.105]
[1756082780639,5.18440899,112440.0,112430.0,0.105]
[1756082780843,6.56818226,112440.0,112430.0,0.105]
[1756082781281,6.56818226,112440.0,112430.0,0.005]
[1756082781921,6.56818226,112440.0,112430.0,0.003]
[1756082782138,6.56818226,112440.0,112410.0,0.14258163]
[1756082782139,0.17790428,112420.0,112410.0,0.14258163]
[1756082782347,1.38563755,112420.0,112410.0,0.17641269]
[1756082782778,1.20018365,112420.0,112410.0,0.17641269]
[1756082782994,1.37808793,112420.0,112410.0,0.17641269]
[1756082783466,1.38021793,112420.0,112410.0,0.10223106]
[1756082783685,1.56697755,112420.0,112410.0,0.10014106]
[1756082783934,1.40168895,112420.0,112410.0,0.10223106]
[1756082784158,1.56380755,112420.0,112410.0,0.10214106]
[1756082784380,1.56480755,112420.0,112410.0,0.10514106]
[1756082784598,1.56697755,112420.0,112410.0,0.10214106]
[1756082784818,6.43267655,112420.0,112410.0,0.00014106]
[1756082785030,6.43367655,112420.0,112410.0,0.00214106]
[1756082785255,6.5205613,112420.0,112410.0,0.00314106]
[1756082785480,7.72829457,112420.0,112410.0,0.00314106]
[1756082785694,8.06829457,112420.0,112410.0,0.00314106]
[1756082785924,8.09533856,112420.0,112410.0,0.00314106]
[1756082786169,8.10926202,112420.0,112410.0,0.00314106]
[1756082786385,8.10926202,112420.0,112410.0,0.00214106]
[1756082786611,8.10922202,112420.0,112410.0,0.00214106]
[1756082787256,7.93222202,112420.0,112410.0,0.00014106]
[1756082787503,7.93422202,112420.0,112410.0,0.00214106]
[1756082787740,8.11022202,112420.0,112410.0,0.00014106]
[1756082788157,8.11122202,112420.0,112410.0,0.00114106]
[1756082788582,7.93522202,112420.0,112410.0,0.00114106]
[1756082788811,8.11122202,112420.0,112410.0,0.00114106]
[1756082789476,6.35727476,112420.0,112410.0,0.00114106]
[1756082789711,6.5193913,112420.0,112410.0,0.00114106]
[1756082789927,6.3412213,112420.0,112410.0,0.00630106]
[1756082790146,6.5172213,112420.0,112410.0,0.00630106]
[1756082790365,6.5192413,112420.0,112410.0,0.00114106]
[1756082790574,6.3432413,112420.0,112410.0,0.00310106]
[1756082790811,6.5172213,112420.0,112410.0,0.00630106]
[1756082791030,6.3412213,112420.0,112410.0,0.00630106]
[1756082791257,6.5172213,112420.0,112410.0,0.00630106]
[1756082791467,6.43033655,112420.0,112410.0,0.00630106]
[1756082793030,0.003,112420.0,112410.0,0.00630106]
[1756082793248,0.003,112420.0,112410.0,0.35562669]
[1756082793477,0.003,112420.0,112410.0,0.7050772]
[1756082793948,0.002,112420.0,112410.0,0.7050772]
[1756082794157,0.00858555,112440.0,112430.0,0.17788846]
[1756082794424,1.20773327,112450.0,112430.0,0.52914929]
[1756082794662,1.20773327,112460.0,112440.0,0.18329602]
[1756082794890,1.20773327,112460.0,112450.0,0.10516]
[1756082795121,1.21640412,112460.0,112450.0,0.10516]
[1756082795348,1.39424513,112460.0,112450.0,0.10516]
[1756082795614,1.43569445,112460.0,112450.0,0.1]
[1756082795838,0.17785682,112450.0,112440.0,0.1]
[1756082796048,0.17787264,112440.0,112430.0,0.0032]
[1756082796267,1.20773327,112440.0,112430.0,0.10530106]
[1756082796518,1.20773327,112440.0,112430.0,0.15344117]
[1756082796729,1.20773327,112440.0,112430.0,0.33132963]
[1756082796945,1.20773327,112440.0,112430.0,0.32910603]
[1756082797166,1.40313718,112460.0,112430.0,0.41599078]
[1756082797377,1.21740412,112460.0,112450.0,0.003]
[1756082797588,0.00867085,112460.0,112450.0,0.10516]
[1756082797809,1.38557428,112460.0,112450.0,0.13346318]
[1756082798027,1.20773327,112460.0,112450.0,0.10516]
[1756082798472,1.21655253,112460.0,112450.0,0.10416]
[1756082798915,0.18666027,112460.0,112450.0,0.10096]
[1756082799150,1.39439354,112460.0,112450.0,0.10096]
[1756082799402,1.57131354,112460.0,112450.0,0.10396]
[1756082799626,1.57640354,112460.0,112450.0,0.103]
[1756082800075,1.59032025,112460.0,112450.0,0.103]
[1756082800289,1.59032025,112460.0,112450.0,0.104]
[1756082800493,1.57640354,112460.0,112450.0,0.104]
[1756082800696,1.61639368,112460.0,112450.0,0.104]
[1756082800924,1.61539368,112460.0,112450.0,0.101]
[1756082801138,1.61539368,112460.0,112450.0,0.001]
[1756082801372,1.61332368,112460.0,112450.0,0.006]
[1756082802031,1.61332368,112460.0,112450.0,0.00696]
[1756082802256,1.61332368,112460.0,112430.0,0.25032269]
[1756082802257,0.17787264,112440.0,112430.0,0.00014106]
[1756082802467,1.38560591,112440.0,112430.0,0.10210106]
[1756082802940,1.39069591,112440.0,112430.0,0.10014106]
[1756082803183,1.56657591,112440.0,112430.0,0.10014106]
[1756082803404,1.56148591,112440.0,112430.0,0.11211517]
[1756082803615,1.56350591,112440.0,112430.0,0.11211517]
[1756082803834,1.56657591,112440.0,112430.0,0.11015517]
[1756082804048,1.56350591,112440.0,112430.0,0.11211517]
[1756082804257,1.56657591,112440.0,112430.0,0.11015517]
[1756082804469,1.56757591,112440.0,112430.0,0.11615517]
[1756082804869,1.56248591,112440.0,112430.0,0.11811517]
[1756082805077,1.56248591,112440.0,112430.0,0.11911517]
[1756082805298,1.56244591,112440.0,112430.0,0.11911517]
[1756082805508,0.35471264,112440.0,112430.0,0.12131517]
[1756082805732,0.35471264,112440.0,112430.0,0.11811517]
[1756082805935,0.35471264,112440.0,112430.0,0.11911517]
[1756082806362,1.56244591,112440.0,112430.0,0.11911517]
[1756082806788,0.35471264,112440.0,112430.0,0.12231517]
[1756082807453,1.39169591,112440.0,112430.0,0.10714106]
[1756082807676,0.35673264,112440.0,112430.0,0.10910106]
[1756082807941,1.38862591,112440.0,112430.0,0.10910106]
[1756082808195,1.56240591,112440.0,112430.0,0.10910106]
[1756082808437,1.56240591,112440.0,112430.0,0.11230106]
[1756082808684,1.56240591,112440.0,112430.0,0.12353117]
[1756082808900,0.1768,112440.0,112430.0,0.12033117]
[1756082809119,0.001,112440.0,112430.0,0.12353117]
[1756082809339,0.17887264,112440.0,112430.0,0.12033117]
[1756082809556,0.35467264,112440.0,112430.0,0.12353117]
[1756082809994,0.35467264,112440.0,112430.0,0.12033117]
[1756082810457,1.56240591,112440.0,112430.0,0.12033117]
[1756082810892,1.56749591,112440.0,112430.0,0.10714106]
[1756082812022,1.39169591,112440.0,112430.0,0.10714106]
[1756082812227,1.56749591,112440.0,112430.0,0.10714106]
[1756082814141,0.18396264,112440.0,112430.0,0.10714106]
[1756082814399,1.56745591,112440.0,112430.0,0.10714106]
[1756082814652,1.56745591,112440.0,112430.0,0.11807755]
[1756082814887,1.56438591,112440.0,112430.0,0.12018755]
[1756082815566,0.001,112440.0,112430.0,0.12018755]
[1756082815789,0.17887264,112440.0,112430.0,0.12313755]
[1756082816015,1.56438591,112440.0,112430.0,0.12018755]
[1756082817595,0.35979264,112440.0,112430.0,0.11807755]
[1756082817815,1.56752591,112440.0,112430.0,0.11807755]
[1756082818773,1.56438591,112440.0,112430.0,0.12018755]
[1756082819047,0.17668,112440.0,112430.0,0.12313755]
[1756082819314,0.001,112440.0,112430.0,0.12536115]
[1756082819843,0.001,112440.0,112430.0,0.56581436]
[1756082820092,0.001,112440.0,112430.0,0.56359076]
[1756082820579,0.001,112440.0,112430.0,0.58103978]
[1756082820828,0.029878,112510.0,112480.0,0.17780891]
[1756082821073,1.2105108,112510.0,112500.0,0.00211]
[1756082821321,1.2105108,112510.0,112500.0,0.00506]
[1756082821322,0.00878385,112510.0,112500.0,0.00506]
[1756082821563,0.17774872,112520.0,112500.0,0.00211]
[1756082821806,0.17774872,112520.0,112510.0,0.1]
[1756082822033,1.38548199,112520.0,112510.0,0.112616]
[1756082822298,1.38754199,112520.0,112510.0,0.11064706]
[1756082822535,0.00870467,112520.0,112510.0,0.11275706]
[1756082822777,1.20773327,112530.0,112510.0,0.46810826]
[1756082823010,1.20773327,112530.0,112520.0,0.10517182]
[1756082823246,1.20773327,112530.0,112520.0,0.14310536]
[1756082823485,1.38752365,112530.0,112520.0,0.14015536]
[1756082823956,1.38546365,112530.0,112520.0,0.04015536]
[1756082824184,1.38546365,112530.0,112520.0,0.14015536]
[1756082824417,1.38752365,112530.0,112520.0,0.14015536]
[1756082824901,1.38752365,112530.0,112520.0,0.13804536]
[1756082825139,1.38546365,112530.0,112520.0,0.14015536]
[1756082825380,1.38752365,112530.0,112520.0,0.14315536]
[1756082825614,0.17773038,112530.0,112520.0,0.14315536]
[1756082825879,1.20773327,112530.0,112520.0,0.14610536]
[1756082826121,1.38752365,112530.0,112520.0,0.31871536]
[1756082826358,0.36555745,112540.0,112520.0,0.31871536]
[1756082826596,1.20773327,112530.0,112520.0,0.31871536]
[1756082826846,0.0002,112540.0,112530.0,0.17773038]
[1756082827130,0.0002,112540.0,112530.0,0.51622258]
[1756082827831,0.0002,112540.0,112530.0,0.69174258]
[1756082828086,0.0012,112540.0,112530.0,0.69174258]
[1756082828345,0.0012,112540.0,112530.0,0.76284421]
[1756082828805,0.0002,112540.0,112530.0,2.4280265]
[1756082829061,0.0002,112540.0,112530.0,1.22029323]
[1756082829607,0.0012,112540.0,112530.0,1.32829323]
[1756082830574,0.0012,112540.0,112530.0,1.15077323]
[1756082830820,0.0002,112550.0,112540.0,0.73516361]
[1756082831038,0.0002,112560.0,112550.0,1.60288109]
[1756082831289,0.0002,112560.0,112550.0,2.31022584]
[1756082831991,0.0002,112570.0,112560.0,0.37768301]
[1756082832267,0.50107581,112600.0,112590.0,0.17763566]
[1756082832493,0.50107581,112600.0,112590.0,0.65900889]
[1756082832714,0.50107581,112600.0,112590.0,0.50105791]
[1756082832938,0.50107581,112600.0,112590.0,0.67645791]
[1756082833161,0.50107581,112600.0,112590.0,1.01645791]
[1756082833387,0.43087004,112600.0,112590.0,1.11645791]
[1756082833866,0.43087004,112600.0,112590.0,0.94105791]
[1756082834104,0.43087004,112600.0,112590.0,0.84105791]
[1756082834346,0.43087004,112600.0,112590.0,0.49810791]
[1756082834572,0.43293004,112600.0,112590.0,0.65597889]
[1756082834794,0.43293004,112600.0,112590.0,0.47623323]
[1756082835236,0.43607004,112600.0,112590.0,0.48454889]
[1756082835449,0.43607004,112600.0,112590.0,0.47923323]
[1756082835450,0.43293004,112600.0,112590.0,0.47923323]
[1756082835686,0.43607004,112600.0,112590.0,0.30391323]
[1756082835928,1.64066331,112600.0,112590.0,0.48323323]
[1756082836384,1.63860331,112600.0,112590.0,0.48765889]
[1756082836603,0.43087004,112600.0,112590.0,0.66297889]
[1756082836834,0.43087004,112600.0,112590.0,0.30702323]
[1756082837069,0.43087004,112600.0,112590.0,0.48434323]
[1756082837318,1.63860331,112600.0,112590.0,0.48430323]
[1756082837550,0.43293004,112600.0,112590.0,0.48219323]
[1756082837808,1.64380331,112600.0,112590.0,0.48219323]
[1756082838277,1.8214232,112600.0,112590.0,0.17450106]
[1756082838524,1.8214232,112600.0,112590.0,0.10614106]
[1756082838748,1.8214232,112600.0,112590.0,0.28142106]
[1756082838982,1.8214232,112600.0,112590.0,0.10614106]
[1756082839205,1.8214232,112600.0,112590.0,0.10446106]
[1756082839206,1.9967032,112600.0,112590.0,0.10446106]
[1756082839439,1.9967032,112600.0,112590.0,0.10614106]
[1756082839659,2.08358795,112600.0,112590.0,0.10614106]
[1756082839900,2.08358795,112600.0,112590.0,0.10214106]
[1756082840116,0.87585468,112600.0,112590.0,0.10214106]
[1756082840343,0.87585468,112600.0,112590.0,0.11235517]
[1756082840344,2.08358795,112600.0,112590.0,0.11235517]
[1756082840556,2.08358795,112600.0,112590.0,0.11035517]
[1756082840779,0.43087004,112600.0,112590.0,0.20034992]
[1756082841044,0.43087004,112600.0,112590.0,0.55322558]
[1756082841242,1.64066331,112600.0,112590.0,0.37447992]
[1756082841530,1.64380331,112600.0,112590.0,0.19823992]
[1756082841724,1.64380331,112600.0,112590.0,0.28659517]
[1756082842159,0.43607004,112600.0,112590.0,0.28659517]
[1756082842399,1.64380331,112600.0,112590.0,0.11135517]
[1756082843081,1.64380331,112600.0,112590.0,0.1824568]
[1756082843297,0.43087004,112600.0,112590.0,0.44908721]
[1756082843530,0.43087004,112600.0,112590.0,0.45203721]
[1756082843738,0.43087004,112600.0,112590.0,0.52035721]
[1756082844241,0.43087004,112600.0,112590.0,0.53780623]
[1756082845029,0.43087004,112600.0,112590.0,0.53680623]
[1756082845474,0.43087004,112600.0,112590.0,0.54380623]
[1756082846149,0.43087004,112600.0,112590.0,0.52340721]
[1756082846385,0.43087004,112600.0,112590.0,0.54085623]
[1756082847068,0.43087004,112600.0,112590.0,0.27466992]
[1756082847363,2.02104233,112600.0,112590.0,0.19402581]
[1756082847585,2.02104233,112600.0,112590.0,0.36618581]
[1756082847820,0.43592004,112600.0,112590.0,0.36818581]
[1756082848047,2.02104233,112600.0,112590.0,0.36818581]
[1756082848270,2.02104233,112600.0,112590.0,0.36218581]
[1756082848493,2.02104233,112600.0,112590.0,0.41716953]
[1756082849446,2.02915354,112600.0,112590.0,0.41716953]
[1756082850416,2.02915572,112600.0,112590.0,0.41716953]
[1756082850889,2.20677561,112600.0,112590.0,0.10114106]
[1756082851124,2.20677561,112600.0,112590.0,0.11898106]
[1756082851350,2.20677561,112600.0,112590.0,0.10114106]
[1756082851575,2.20677561,112600.0,112590.0,0.00114106]
[1756082852268,2.20677561,112600.0,112590.0,0.00014106]
[1756082852542,2.19966222,112600.0,112590.0,0.00014106]
[1756082852772,2.5477774,112600.0,112590.0,0.00014106]
[1756082853487,2.54779123,112600.0,112590.0,0.00014106]
[1756082853733,0.96266894,112600.0,112590.0,0.00014106]
[1756082853979,2.54779123,112600.0,112590.0,0.00014106]
[1756082854459,2.54529134,112600.0,112590.0,0.00014106]
[1756082854915,2.02714134,112600.0,112590.0,0.00014106]
[1756082855149,0.43999905,112600.0,112590.0,0.51526354]
[1756082855369,0.43999905,112600.0,112590.0,0.58264843]
[1756082855593,0.43999905,112600.0,112590.0,0.68264843]
[1756082855826,0.43999905,112600.0,112590.0,0.68578843]
[1756082856053,0.43999905,112600.0,112590.0,0.68264843]
[1756082856331,0.43999905,112600.0,112590.0,0.50752843]
[1756082856568,2.20779123,112600.0,112590.0,0.50585277]
[1756082856796,2.20679123,112600.0,112590.0,0.17826106]
[1756082857033,2.38191123,112600.0,112590.0,0.00314106]
[1756082857970,2.72291123,112600.0,112590.0,0.00014106]
[1756082858201,1.13778894,112600.0,112590.0,0.00014106]
[1756082858655,2.72291123,112600.0,112590.0,0.00014106]
[1756082859842,2.54779123,112600.0,112590.0,0.00014106]
[1756082860047,2.72291123,112600.0,112590.0,0.00014106]
[1756082860273,2.54779123,112600.0,112590.0,0.00014106]
[1756082860504,2.72287123,112600.0,112590.0,0.00014106]
[1756082860734,2.37017134,112600.0,112590.0,0.00014106]
[1756082860966,2.54525134,112600.0,112590.0,0.00014106]
[1756082861195,2.53712233,112600.0,112590.0,0.00014106]
[1756082861419,2.01901233,112600.0,112590.0,0.07124269]
[1756082861642,2.01901233,112600.0,112590.0,0.09835249]
[1756082862078,2.19966222,112600.0,112590.0,0.09613205]
[1756082862300,2.19966222,112600.0,112590.0,0.07124269]
[1756082863446,2.19966222,112600.0,112590.0,0.00014106]
[1756082864389,2.20782889,112600.0,112590.0,0.00014106]
[1756082864855,2.38290889,112600.0,112590.0,0.00014106]
[1756082865078,2.17397546,112600.0,112590.0,0.00014106]
[1756082865317,1.79296915,112600.0,112590.0,0.00014106]
[1756082866238,1.44026926,112600.0,112590.0,0.00014106]
[1756082866452,0.41119328,112600.0,112590.0,0.00014106]
[1756082866685,1.79292915,112600.0,112590.0,0.00014106]
[1756082867352,1.42705259,112600.0,112590.0,0.00230106]
[1756082867770,1.42705259,112600.0,112590.0,0.07562313]
[1756082867975,1.42705259,112600.0,112590.0,0.10095044]
[1756082868178,1.42705259,112600.0,112590.0,0.20095044]
[1756082868401,1.42705259,112600.0,112590.0,0.19873]
[1756082868808,1.42705259,112600.0,112590.0,0.37636566]
[1756082869022,1.42705259,112600.0,112590.0,0.64143041]
[1756082869229,1.42605259,112600.0,112590.0,0.64143041]
[1756082869446,1.42705259,112600.0,112590.0,0.64243041]
[1756082869863,0.22193661,112600.0,112590.0,0.65987943]
[1756082870293,1.42605259,112600.0,112590.0,0.65987943]
[1756082870711,1.42605259,112600.0,112590.0,0.65887943]
[1756082870912,0.22193661,112600.0,112590.0,0.66187943]
[1756082871127,0.22193661,112600.0,112590.0,0.66087943]
[1756082871622,0.22193661,112600.0,112590.0,0.66483943]
[1756082871785,1.42605259,112600.0,112590.0,0.66483943]
[1756082871995,0.22193661,112600.0,112590.0,0.66483943]
[1756082872239,0.22193661,112600.0,112590.0,0.48983943]
[1756082872455,0.22193661,112600.0,112590.0,0.66483943]
[1756082873114,0.22193661,112600.0,112590.0,0.66479943]
[1756082874431,0.22193661,112600.0,112590.0,0.48983943]
[1756082874651,0.22193661,112600.0,112590.0,0.5936978]
[1756082875277,1.42605259,112600.0,112590.0,0.5936978]
[1756082875699,0.22193661,112600.0,112590.0,0.4187378]
[1756082875909,0.22193661,112600.0,112590.0,0.5936578]
[1756082877028,0.22193661,112600.0,112590.0,0.4155978]
[1756082877242,1.42605259,112600.0,112590.0,0.5905178]
[1756082878570,1.42605259,112600.0,112590.0,0.39814878]
[1756082878804,1.42605259,112600.0,112590.0,0.5904778]
[1756082879544,0.22193661,112600.0,112590.0,0.5904778]
[1756082879767,0.22193661,112600.0,112590.0,0.5934178]
[1756082879991,0.22193661,112600.0,112590.0,0.5933778]
[1756082880696,0.22193661,112600.0,112590.0,0.5904378]
[1756082881350,0.22193661,112600.0,112590.0,0.6082778]
[1756082881578,0.22193661,112600.0,112590.0,0.5933778]
[1756082884002,0.22193661,112600.0,112590.0,0.5904378]
[1756082884234,1.42605259,112600.0,112590.0,0.5904378]
[1756082884671,0.22193661,112600.0,112590.0,0.5904378]
[1756082884915,1.42605259,112600.0,112590.0,0.5904378]
[1756082885135,1.43140259,112600.0,112590.0,0.39311312]
[1756082886031,1.42821259,112600.0,112590.0,0.38922312]
[1756082886249,1.43140259,112600.0,112590.0,0.39322312]
[1756082886472,1.42821259,112600.0,112590.0,0.39322312]
[1756082886951,1.42821259,112600.0,112590.0,0.57085878]
[1756082887660,1.43140259,112600.0,112590.0,0.56874878]
[1756082887881,1.42821259,112600.0,112590.0,0.57085878]
[1756082888327,0.22409661,112600.0,112590.0,0.57085878]
[1756082888549,1.42821259,112600.0,112590.0,0.57085878]
[1756082888802,0.22193661,112600.0,112590.0,0.57085878]
[1756082890213,0.22193661,112600.0,112590.0,0.5883078]
[1756082890447,0.22193661,112600.0,112590.0,0.5912478]
[1756082892065,0.22193661,112600.0,112590.0,0.66234943]